[Event "Late-Titled-Tuesday-Blitz-October-24-2023"]
[Site "Chess.com"]
[Date "2023.10.24"]
[Round "5"]
[White "tdf98pantani"]
[Black "Angry_Twin"]
[Result "0-1"]
[WhiteElo "2661"]
[BlackElo "2935"]
[TimeControl "180+1"]
[EndTime "14:56:53 PDT"]
[Termination "Angry_Twin won on time"]

1. e4 {[%clk 0:02:56.9]} 1... c5 {[%clk 0:03:00.2]} 2. Nf3 {[%clk 0:02:55.5]}
2... d6 {[%clk 0:03:00.9]} 3. d4 {[%clk 0:02:55.8]} 3... cxd4 {[%clk 0:03:01.8]}
4. Nxd4 {[%clk 0:02:56.4]} 4... Nf6 {[%clk 0:03:02.6]} 5. Nc3 {[%clk 0:02:57]}
5... a6 {[%clk 0:03:03.3]} 6. Be2 {[%clk 0:02:57.4]} 6... e5 {[%clk 0:03:03.6]}
7. Nb3 {[%clk 0:02:57.7]} 7... Be7 {[%clk 0:03:04.2]} 8. g4 {[%clk 0:02:58.2]}
8... h6 {[%clk 0:03:01.7]} 9. h4 {[%clk 0:02:54.7]} 9... b5 {[%clk 0:03:01.4]}
10. a3 {[%clk 0:02:52.9]} 10... Bb7 {[%clk 0:03:00.5]} 11. Bf3 {[%clk
0:02:53.1]} 11... Nfd7 {[%clk 0:02:52.2]} 12. Nd5 {[%clk 0:02:46.8]} 12... Nc6
{[%clk 0:02:52.1]} 13. Nxe7 {[%clk 0:02:43.4]} 13... Qxe7 {[%clk 0:02:51.9]} 14.
Be3 {[%clk 0:02:43.3]} 14... Nc5 {[%clk 0:02:49.2]} 15. Qd2 {[%clk 0:02:25.4]}
15... O-O-O {[%clk 0:02:45.5]} 16. O-O-O {[%clk 0:02:22.9]} 16... Kb8 {[%clk
0:02:45.3]} 17. Qc3 {[%clk 0:01:58.3]} 17... Ne6 {[%clk 0:02:40.7]} 18. Kb1
{[%clk 0:01:53.3]} 18... Rc8 {[%clk 0:02:40.7]} 19. Qd2 {[%clk 0:01:53.1]} 19...
Rhd8 {[%clk 0:02:40.3]} 20. g5 {[%clk 0:01:52.4]} 20... hxg5 {[%clk 0:02:34.3]}
21. hxg5 {[%clk 0:01:52.7]} 21... g6 {[%clk 0:02:31.5]} 22. Rh7 {[%clk
0:01:50.5]} 22... Ncd4 {[%clk 0:02:14.6]} 23. Bg2 {[%clk 0:01:35.3]} 23... Rxc2
{[%clk 0:02:08.5]} 24. Qd3 {[%clk 0:01:31]} 24... Rcc8 {[%clk 0:02:04]} 25. Nxd4
{[%clk 0:00:57.2]} 25... exd4 {[%clk 0:02:00.2]} 26. Bxd4 {[%clk 0:00:55.7]}
26... Nxg5 {[%clk 0:01:51.9]} 27. Rh4 {[%clk 0:00:43]} 27... Ne6 {[%clk
0:01:51.8]} 28. Rg4 {[%clk 0:00:36.8]} 28... Nxd4 {[%clk 0:01:46.4]} 29. Qxd4
{[%clk 0:00:37.2]} 29... Qe5 {[%clk 0:01:47]} 30. Rg3 {[%clk 0:00:34.4]} 30...
Qf4 {[%clk 0:01:27.6]} 31. Rgd3 {[%clk 0:00:31.6]} 31... Rd7 {[%clk 0:01:12.2]}
32. f3 {[%clk 0:00:30]} 32... Qg3 {[%clk 0:00:39.4]} 33. R3d2 {[%clk 0:00:24.6]}
33... Rc4 {[%clk 0:00:37.6]} 34. Qb6 {[%clk 0:00:23.8]} 34... Rc6 {[%clk
0:00:36.5]} 35. Qa5 {[%clk 0:00:23.5]} 35... Rdc7 {[%clk 0:00:36]} 36. Qb4
{[%clk 0:00:20.2]} 36... g5 {[%clk 0:00:24.7]} 37. Qd4 {[%clk 0:00:19.7]} 37...
Qe5 {[%clk 0:00:22.6]} 38. Qe3 {[%clk 0:00:18.5]} 38... f6 {[%clk 0:00:10.4]}
39. Bh3 {[%clk 0:00:18]} 39... Qc5 {[%clk 0:00:09.1]} 40. Qd3 {[%clk 0:00:16.3]}
40... b4 {[%clk 0:00:06.9]} 41. axb4 {[%clk 0:00:14.7]} 41... Qxb4 {[%clk
0:00:07.8]} 42. Be6 {[%clk 0:00:14.3]} 42... Rb6 {[%clk 0:00:08]} 43. Rc2 {[%clk
0:00:08.5]} 43... Rxc2 {[%clk 0:00:06.3]} 44. Qxc2 {[%clk 0:00:08.8]} 44... Rc6
{[%clk 0:00:06.8]} 45. Qd3 {[%clk 0:00:08.5]} 45... Rb6 {[%clk 0:00:07.3]} 46.
Rd2 {[%clk 0:00:08.8]} 46... a5 {[%clk 0:00:07.2]} 47. Bd5 {[%clk 0:00:07.5]}
47... Ba6 {[%clk 0:00:07.6]} 48. Qc2 {[%clk 0:00:06.6]} 48... a4 {[%clk
0:00:07.4]} 49. Ka2 {[%clk 0:00:04.6]} 49... Bb5 {[%clk 0:00:06.9]} 50. Qc3
{[%clk 0:00:04.8]} 50... Qxc3 {[%clk 0:00:06.8]} 51. bxc3 {[%clk 0:00:05.7]}
51... Bd7 {[%clk 0:00:07.2]} 52. Rd4 {[%clk 0:00:05.4]} 52... Kc7 {[%clk
0:00:07.3]} 53. Rc4+ {[%clk 0:00:05.2]} 53... Kd8 {[%clk 0:00:07.9]} 54. Rd4
{[%clk 0:00:05.3]} 54... Rb8 {[%clk 0:00:07.7]} 55. Ka3 {[%clk 0:00:04.6]} 55...
Ke7 {[%clk 0:00:07.8]} 56. Bc4 {[%clk 0:00:04.2]} 56... Rc8 {[%clk 0:00:08.2]}
57. Kb4 {[%clk 0:00:03.9]} 57... Rh8 {[%clk 0:00:08.1]} 0-1

[Event "Late-Titled-Tuesday-Blitz-October-24-2023"]
[Site "Chess.com"]
[Date "2023.10.24"]
[Round "5"]
[White "vladislavkovalev"]
[Black "ArtemDyachuk"]
[Result "1-0"]
[WhiteElo "2872"]
[BlackElo "2640"]
[TimeControl "180+1"]
[EndTime "14:57:17 PDT"]
[Termination "vladislavkovalev won by checkmate"]

1. e4 {[%clk 0:03:00.9]} 1... c5 {[%clk 0:02:15.9]} 2. Nf3 {[%clk 0:02:59.6]}
2... d6 {[%clk 0:02:15.5]} 3. Bb5+ {[%clk 0:03:00.1]} 3... Bd7 {[%clk
0:02:13.9]} 4. Bxd7+ {[%clk 0:02:59.6]} 4... Qxd7 {[%clk 0:02:14.8]} 5. c4
{[%clk 0:03:00]} 5... g6 {[%clk 0:02:14.7]} 6. Nc3 {[%clk 0:03:00.5]} 6... Bg7
{[%clk 0:02:14.5]} 7. d4 {[%clk 0:03:01.2]} 7... cxd4 {[%clk 0:02:14]} 8. Nxd4
{[%clk 0:03:02.1]} 8... Nf6 {[%clk 0:02:14]} 9. f3 {[%clk 0:03:01.6]} 9... O-O
{[%clk 0:02:13.8]} 10. Be3 {[%clk 0:03:01.9]} 10... Nc6 {[%clk 0:02:10.8]} 11.
b3 {[%clk 0:02:57.6]} 11... Rac8 {[%clk 0:02:02.5]} 12. O-O {[%clk 0:02:56.3]}
12... a6 {[%clk 0:02:00.2]} 13. a4 {[%clk 0:02:54.8]} 13... Qc7 {[%clk
0:01:55.9]} 14. Qd2 {[%clk 0:02:51.1]} 14... Nd7 {[%clk 0:01:53.9]} 15. Nd5
{[%clk 0:02:50.2]} 15... Qd8 {[%clk 0:01:53.2]} 16. Rab1 {[%clk 0:02:47.1]}
16... Nc5 {[%clk 0:01:48.1]} 17. a5 {[%clk 0:02:24.6]} 17... Nxa5 {[%clk
0:01:33.9]} 18. Nxe7+ {[%clk 0:02:24.2]} 18... Qxe7 {[%clk 0:01:34.8]} 19. Qxa5
{[%clk 0:02:24.6]} 19... f5 {[%clk 0:01:34.6]} 20. b4 {[%clk 0:02:18.4]} 20...
Nd3 {[%clk 0:01:32.2]} 21. Nxf5 {[%clk 0:02:00.9]} 21... Rxf5 {[%clk 0:01:17.8]}
22. Qa3 {[%clk 0:02:00.9]} 22... Ne5 {[%clk 0:01:12.6]} 23. exf5 {[%clk
0:01:07.1]} 23... Nxc4 {[%clk 0:01:11.6]} 24. Qa2 {[%clk 0:00:50.5]} 24... Qxe3+
{[%clk 0:01:09.4]} 25. Kh1 {[%clk 0:00:51.2]} 25... d5 {[%clk 0:01:08.3]} 26.
fxg6 {[%clk 0:00:49.8]} 26... hxg6 {[%clk 0:01:09.2]} 27. Rbd1 {[%clk
0:00:49.1]} 27... Qe6 {[%clk 0:01:02.3]} 28. Rfe1 {[%clk 0:00:48.7]} 28... Qf7
{[%clk 0:01:01.8]} 29. b5 {[%clk 0:00:43.9]} 29... axb5 {[%clk 0:00:57.3]} 30.
Qb3 {[%clk 0:00:44.5]} 30... Rc5 {[%clk 0:00:53.4]} 31. Re2 {[%clk 0:00:39.4]}
31... d4 {[%clk 0:00:50.8]} 32. Ra2 {[%clk 0:00:39.1]} 32... Ne3 {[%clk
0:00:40.7]} 33. Ra8+ {[%clk 0:00:39.1]} 33... Bf8 {[%clk 0:00:40.3]} 34. Qb4
{[%clk 0:00:18.9]} 34... Rc1 {[%clk 0:00:30.4]} 35. Rxf8+ {[%clk 0:00:16.4]}
35... Qxf8 {[%clk 0:00:31.3]} 36. Qxf8+ {[%clk 0:00:17]} 36... Kxf8 {[%clk
0:00:31.3]} 37. Rxc1 {[%clk 0:00:17.1]} 37... d3 {[%clk 0:00:31.7]} 38. Rc8+
{[%clk 0:00:14.9]} 38... Ke7 {[%clk 0:00:29.9]} 39. Rc7+ {[%clk 0:00:15.4]}
39... Ke6 {[%clk 0:00:23.1]} 40. Rc3 {[%clk 0:00:15]} 40... b4 {[%clk
0:00:14.2]} 41. Rxd3 {[%clk 0:00:15.2]} 41... Nd5 {[%clk 0:00:12.2]} 42. Kg1
{[%clk 0:00:15.6]} 42... Kd6 {[%clk 0:00:12.4]} 43. Kf2 {[%clk 0:00:15.9]} 43...
Kc5 {[%clk 0:00:12.6]} 44. Ke1 {[%clk 0:00:16.5]} 44... Kc4 {[%clk 0:00:12.6]}
45. Rd2 {[%clk 0:00:14.5]} 45... b3 {[%clk 0:00:12.4]} 46. Kd1 {[%clk
0:00:15.1]} 46... b5 {[%clk 0:00:05.6]} 47. Rxd5 {[%clk 0:00:09.2]} 47... Kxd5
{[%clk 0:00:05.1]} 48. Kc1 {[%clk 0:00:09.8]} 48... Kd4 {[%clk 0:00:04.8]} 49.
f4 {[%clk 0:00:08.5]} 49... Ke4 {[%clk 0:00:04.5]} 50. g3 {[%clk 0:00:08.8]}
50... Kf3 {[%clk 0:00:02.8]} 51. Kb2 {[%clk 0:00:09.3]} 51... Kg4 {[%clk
0:00:02.9]} 52. Kxb3 {[%clk 0:00:09.6]} 52... Kh3 {[%clk 0:00:03]} 53. Kb4
{[%clk 0:00:09.6]} 53... Kxh2 {[%clk 0:00:03.2]} 54. g4 {[%clk 0:00:10]} 54...
Kg3 {[%clk 0:00:03.1]} 55. f5 {[%clk 0:00:10.9]} 55... gxf5 {[%clk 0:00:03.4]}
56. gxf5 {[%clk 0:00:11.8]} 56... Kf4 {[%clk 0:00:04.3]} 57. f6 {[%clk
0:00:12.7]} 57... Ke4 {[%clk 0:00:04.9]} 58. f7 {[%clk 0:00:13.6]} 58... Kd5
{[%clk 0:00:05.8]} 59. f8=Q {[%clk 0:00:14.5]} 59... Ke4 {[%clk 0:00:06.7]} 60.
Qc5 {[%clk 0:00:14.8]} 60... Kd3 {[%clk 0:00:01.7]} 61. Qxb5+ {[%clk 0:00:15.7]}
61... Ke3 {[%clk 0:00:02.1]} 62. Qc5+ {[%clk 0:00:16.3]} 62... Kd3 {[%clk
0:00:02.5]} 63. Kb3 {[%clk 0:00:16.7]} 63... Ke4 {[%clk 0:00:02.7]} 64. Kc3
{[%clk 0:00:16.9]} 64... Kf3 {[%clk 0:00:02.7]} 65. Kd3 {[%clk 0:00:17.3]} 65...
Kg4 {[%clk 0:00:02.7]} 66. Qe5 {[%clk 0:00:17.6]} 66... Kf3 {[%clk 0:00:02.3]}
67. Qf5+ {[%clk 0:00:17.9]} 67... Kg3 {[%clk 0:00:02.3]} 68. Ke3 {[%clk
0:00:18.5]} 68... Kh2 {[%clk 0:00:02.5]} 69. Qg4 {[%clk 0:00:18.3]} 69... Kh1
{[%clk 0:00:01.9]} 70. Kf2 {[%clk 0:00:19.2]} 70... Kh2 {[%clk 0:00:02.7]} 71.
Qh4# {[%clk 0:00:20.1]} 1-0

[Event "Late-Titled-Tuesday-Blitz-October-24-2023"]
[Site "Chess.com"]
[Date "2023.10.24"]
[Round "5"]
[White "GMG"]
[Black "DanylaBagrov"]
[Result "1-0"]
[WhiteElo "2770"]
[BlackElo "2555"]
[TimeControl "180+1"]
[EndTime "14:57:17 PDT"]
[Termination "GMG won on time"]

1. Nf3 {[%clk 0:02:58.4]} 1... d6 {[%clk 0:02:59.3]} 2. d4 {[%clk 0:02:57.3]}
2... Nf6 {[%clk 0:02:59.8]} 3. g3 {[%clk 0:02:55.6]} 3... Nbd7 {[%clk
0:02:58.8]} 4. c4 {[%clk 0:02:55.3]} 4... e5 {[%clk 0:02:58.5]} 5. Nc3 {[%clk
0:02:55.9]} 5... Be7 {[%clk 0:02:58.2]} 6. Bg2 {[%clk 0:02:52.2]} 6... O-O
{[%clk 0:02:58.1]} 7. O-O {[%clk 0:02:52.7]} 7... c6 {[%clk 0:02:58]} 8. e4
{[%clk 0:02:53.3]} 8... a6 {[%clk 0:02:56.8]} 9. a4 {[%clk 0:02:49.8]} 9... a5
{[%clk 0:02:56.3]} 10. h3 {[%clk 0:02:44.3]} 10... Re8 {[%clk 0:02:53.2]} 11.
Re1 {[%clk 0:02:36.7]} 11... Bf8 {[%clk 0:02:49.3]} 12. Be3 {[%clk 0:02:31.7]}
12... exd4 {[%clk 0:02:47.2]} 13. Nxd4 {[%clk 0:02:32.6]} 13... Nc5 {[%clk
0:02:46]} 14. Qc2 {[%clk 0:02:30.5]} 14... Nfd7 {[%clk 0:02:41]} 15. Rad1 {[%clk
0:02:28.7]} 15... Na6 {[%clk 0:02:36.2]} 16. Nf5 {[%clk 0:02:27.1]} 16... Ndc5
{[%clk 0:02:33.5]} 17. g4 {[%clk 0:02:12.1]} 17... Bxf5 {[%clk 0:02:29.9]} 18.
exf5 {[%clk 0:02:13]} 18... Nb4 {[%clk 0:02:24.3]} 19. Qb1 {[%clk 0:02:09]}
19... Qh4 {[%clk 0:02:15.6]} 20. b3 {[%clk 0:01:42.7]} 20... g6 {[%clk 0:02:10]}
21. Ne2 {[%clk 0:01:15.2]} 21... Rad8 {[%clk 0:01:41.2]} 22. Nd4 {[%clk
0:01:08]} 22... Rd7 {[%clk 0:01:13.1]} 23. Nf3 {[%clk 0:00:57.9]} 23... Qd8
{[%clk 0:01:13.4]} 24. Bg5 {[%clk 0:00:56.2]} 24... Rxe1+ {[%clk 0:01:06.5]} 25.
Rxe1 {[%clk 0:00:55]} 25... Qc8 {[%clk 0:01:01.4]} 26. f6 {[%clk 0:00:51]} 26...
d5 {[%clk 0:00:58.5]} 27. Be3 {[%clk 0:00:36.8]} 27... Ncd3 {[%clk 0:00:49.7]}
28. Rd1 {[%clk 0:00:34.1]} 28... dxc4 {[%clk 0:00:50.3]} 29. bxc4 {[%clk
0:00:35]} 29... Rd8 {[%clk 0:00:49.1]} 30. Ne1 {[%clk 0:00:30.1]} 30... Nxe1
{[%clk 0:00:47.2]} 31. Rxe1 {[%clk 0:00:28.5]} 31... Qe6 {[%clk 0:00:45.7]} 32.
Bb6 {[%clk 0:00:25]} 32... Qxf6 {[%clk 0:00:46]} 33. Bxd8 {[%clk 0:00:24.9]}
33... Qxd8 {[%clk 0:00:46.9]} 34. Qd1 {[%clk 0:00:24.2]} 34... Qf6 {[%clk
0:00:45.6]} 35. Qd7 {[%clk 0:00:19.2]} 35... Bc5 {[%clk 0:00:41.2]} 36. Re2
{[%clk 0:00:19.3]} 36... Kg7 {[%clk 0:00:31.9]} 37. Be4 {[%clk 0:00:14.3]} 37...
Qg5 {[%clk 0:00:16.3]} 38. Qe8 {[%clk 0:00:12.4]} 38... h5 {[%clk 0:00:15.8]}
39. Bf3 {[%clk 0:00:12.6]} 39... Nd3 {[%clk 0:00:11.6]} 40. Qe4 {[%clk 0:00:12]}
40... Qc1+ {[%clk 0:00:07.7]} 41. Kg2 {[%clk 0:00:11.5]} 41... Qc3 {[%clk
0:00:07.4]} 42. Re3 {[%clk 0:00:10.3]} 42... Bxe3 {[%clk 0:00:06.9]} 43. Qxe3
{[%clk 0:00:10.9]} 43... Ne1+ {[%clk 0:00:06.9]} 44. Kg3 {[%clk 0:00:09.7]}
44... Qxe3 {[%clk 0:00:07]} 45. fxe3 {[%clk 0:00:10.6]} 45... Nc2 {[%clk
0:00:07.5]} 46. Kf4 {[%clk 0:00:09.4]} 46... g5+ {[%clk 0:00:06.4]} 47. Kxg5
{[%clk 0:00:09.5]} 47... hxg4 {[%clk 0:00:06.8]} 48. Bxg4 {[%clk 0:00:09.8]}
48... Nxe3 {[%clk 0:00:07.7]} 49. Bc8 {[%clk 0:00:09.7]} 49... b6 {[%clk
0:00:07.2]} 50. Bb7 {[%clk 0:00:10]} 50... c5 {[%clk 0:00:06.8]} 51. Ba6 {[%clk
0:00:10.6]} 51... Nc2 {[%clk 0:00:04.8]} 52. h4 {[%clk 0:00:10.3]} 52... Nd4
{[%clk 0:00:05.3]} 53. h5 {[%clk 0:00:10.2]} 53... f6+ {[%clk 0:00:05.9]} 54.
Kf4 {[%clk 0:00:10.4]} 54... Kh6 {[%clk 0:00:06.4]} 55. Ke4 {[%clk 0:00:10.5]}
55... Kxh5 {[%clk 0:00:06.2]} 56. Kd5 {[%clk 0:00:11.3]} 56... f5 {[%clk
0:00:06.5]} 57. Bc8 {[%clk 0:00:11.4]} 57... f4 {[%clk 0:00:06.5]} 58. Kd6
{[%clk 0:00:10.8]} 58... f3 {[%clk 0:00:06.3]} 59. Bh3 {[%clk 0:00:10.6]} 59...
Kh4 {[%clk 0:00:04.8]} 60. Bf1 {[%clk 0:00:10.8]} 60... Nc2 {[%clk 0:00:04.3]}
61. Kc7 {[%clk 0:00:10.6]} 61... Ne3 {[%clk 0:00:04.5]} 62. Bd3 {[%clk 0:00:11]}
62... f2 {[%clk 0:00:03]} 63. Kxb6 {[%clk 0:00:11.3]} 63... f1=Q {[%clk
0:00:02.8]} 64. Bxf1 {[%clk 0:00:11.6]} 64... Nxf1 {[%clk 0:00:03.7]} 65. Kxa5
{[%clk 0:00:12.1]} 65... Nd2 {[%clk 0:00:03]} 66. Kb5 {[%clk 0:00:11.9]} 66...
Nb3 {[%clk 0:00:02.9]} 67. a5 {[%clk 0:00:12.4]} 67... Nd4+ {[%clk 0:00:01.7]}
68. Kxc5 {[%clk 0:00:12.7]} 68... Nb3+ {[%clk 0:00:02.2]} 69. Kb6 {[%clk
0:00:12.3]} 69... Kg5 {[%clk 0:00:02.1]} 70. a6 {[%clk 0:00:12.4]} 70... Nd2
{[%clk 0:00:01.3]} 71. Kc5 {[%clk 0:00:11.5]} 71... Nb3+ {[%clk 0:00:01.2]} 72.
Kc6 {[%clk 0:00:12]} 72... Na5+ {[%clk 0:00:01.1]} 73. Kb5 {[%clk 0:00:12.4]}
1-0

[Event "Late-Titled-Tuesday-Blitz-October-24-2023"]
[Site "Chess.com"]
[Date "2023.10.24"]
[Round "5"]
[White "cthake"]
[Black "aranibos"]
[Result "1-0"]
[WhiteElo "1939"]
[BlackElo "2261"]
[TimeControl "180+1"]
[EndTime "14:57:52 PDT"]
[Termination "cthake won by resignation"]

1. e4 {[%clk 0:03:00.9]} 1... c6 {[%clk 0:02:58.1]} 2. d4 {[%clk 0:02:55.7]}
2... d5 {[%clk 0:02:57.3]} 3. Nc3 {[%clk 0:02:55.7]} 3... dxe4 {[%clk
0:02:52.7]} 4. Nxe4 {[%clk 0:02:55.7]} 4... Nf6 {[%clk 0:02:53.3]} 5. Nxf6+
{[%clk 0:02:55.3]} 5... exf6 {[%clk 0:02:53.9]} 6. Nf3 {[%clk 0:02:54.7]} 6...
Bd6 {[%clk 0:02:54.2]} 7. Bd3 {[%clk 0:02:52.6]} 7... O-O {[%clk 0:02:53.9]} 8.
O-O {[%clk 0:02:50.8]} 8... Bg4 {[%clk 0:02:52]} 9. c3 {[%clk 0:02:50.1]} 9...
Nd7 {[%clk 0:02:51]} 10. Re1 {[%clk 0:02:48.7]} 10... Qc7 {[%clk 0:02:44]} 11.
h3 {[%clk 0:02:47.9]} 11... Bh5 {[%clk 0:02:43.1]} 12. Be3 {[%clk 0:02:45]}
12... Bg6 {[%clk 0:02:40.6]} 13. Bxg6 {[%clk 0:02:44]} 13... hxg6 {[%clk
0:02:39.9]} 14. a4 {[%clk 0:02:42.8]} 14... Rad8 {[%clk 0:02:40.1]} 15. a5
{[%clk 0:02:40.7]} 15... c5 {[%clk 0:02:40.1]} 16. a6 {[%clk 0:02:36.8]} 16...
b6 {[%clk 0:02:38.3]} 17. Qb3 {[%clk 0:02:33.2]} 17... c4 {[%clk 0:02:23]} 18.
Qb5 {[%clk 0:02:18.7]} 18... Rc8 {[%clk 0:02:15.8]} 19. Nd2 {[%clk 0:02:06]}
19... Qc6 {[%clk 0:02:14.2]} 20. Qxc6 {[%clk 0:01:55.3]} 20... Rxc6 {[%clk
0:02:13.7]} 21. Ra4 {[%clk 0:01:55.4]} 21... b5 {[%clk 0:02:13.6]} 22. Ra5
{[%clk 0:01:51.4]} 22... Rb8 {[%clk 0:02:13.7]} 23. Ne4 {[%clk 0:01:41.2]} 23...
Bc7 {[%clk 0:02:01]} 24. Raa1 {[%clk 0:01:40.1]} 24... Nb6 {[%clk 0:01:57.9]}
25. d5 {[%clk 0:01:35.8]} 25... Nxd5 {[%clk 0:01:57.5]} 26. Bxa7 {[%clk
0:01:35.8]} 26... Ra8 {[%clk 0:01:58.1]} 27. Bd4 {[%clk 0:01:30.1]} 27... Rcxa6
{[%clk 0:01:58]} 28. Rxa6 {[%clk 0:01:30.2]} 28... Rxa6 {[%clk 0:01:58.2]} 29.
Nc5 {[%clk 0:01:30.8]} 29... Ra8 {[%clk 0:01:46.7]} 30. g3 {[%clk 0:01:29.7]}
30... Bd6 {[%clk 0:01:41.4]} 31. Ne4 {[%clk 0:01:27.5]} 31... Bf8 {[%clk
0:01:41]} 32. Kg2 {[%clk 0:01:24.9]} 32... g5 {[%clk 0:01:35.5]} 33. Kf3 {[%clk
0:01:20.2]} 33... Ra2 {[%clk 0:01:35.7]} 34. Re2 {[%clk 0:01:19]} 34... Be7
{[%clk 0:01:31.6]} 35. Rd2 {[%clk 0:01:12.5]} 35... f5 {[%clk 0:01:24.9]} 36.
Nc5 {[%clk 0:01:06.3]} 36... Bxc5 {[%clk 0:01:24.7]} 37. Bxc5 {[%clk 0:01:06.4]}
37... Nf6 {[%clk 0:01:22.5]} 38. Ba3 {[%clk 0:01:06.2]} 38... Ra1 {[%clk
0:01:21.1]} 39. Rd8+ {[%clk 0:01:05.1]} 39... Kh7 {[%clk 0:01:20.6]} 40. Rb8
{[%clk 0:01:05.3]} 40... Ne4 {[%clk 0:01:18.4]} 41. Rxb5 {[%clk 0:01:04.1]}
41... Kg6 {[%clk 0:01:17.4]} 42. Rb6+ {[%clk 0:01:03.2]} 42... f6 {[%clk
0:01:17.7]} 43. Rb7 {[%clk 0:00:57.5]} 43... Rf1 {[%clk 0:01:17.6]} 44. Ke2
{[%clk 0:00:51.4]} 44... Rxf2+ {[%clk 0:01:17.7]} 45. Ke1 {[%clk 0:00:51.7]}
45... Rg2 {[%clk 0:01:17.2]} 46. Bf8 {[%clk 0:00:51.5]} 46... f4 {[%clk
0:00:49.3]} 47. Rxg7+ {[%clk 0:00:51.1]} 47... Kf5 {[%clk 0:00:49.5]} 48. gxf4
{[%clk 0:00:48.8]} 48... Kxf4 {[%clk 0:00:48]} 49. h4 {[%clk 0:00:45.5]} 49...
Ke3 {[%clk 0:00:43.6]} 50. Kf1 {[%clk 0:00:43]} 50... Rf2+ {[%clk 0:00:42.1]}
51. Kg1 {[%clk 0:00:42.4]} 51... gxh4 {[%clk 0:00:42.9]} 52. Rh7 {[%clk
0:00:39.4]} 52... Ng5 {[%clk 0:00:42.5]} 53. Bc5+ {[%clk 0:00:36.7]} 53... Ke2
{[%clk 0:00:37.3]} 54. Re7+ {[%clk 0:00:34]} 54... Kf3 {[%clk 0:00:34.4]} 55.
Bxf2 {[%clk 0:00:33.7]} 55... Nh3+ {[%clk 0:00:34.4]} 56. Kf1 {[%clk 0:00:31.5]}
56... Nxf2 {[%clk 0:00:35]} 57. Rf7 {[%clk 0:00:30.7]} 57... Ne4 {[%clk
0:00:33.5]} 58. Rh7 {[%clk 0:00:27.6]} 58... Kg3 {[%clk 0:00:33.3]} 59. Kg1
{[%clk 0:00:24.2]} 59... h3 {[%clk 0:00:32.9]} 60. Rg7+ {[%clk 0:00:23.6]} 60...
Ng5 {[%clk 0:00:32.7]} 61. Rg6 {[%clk 0:00:21.2]} 61... h2+ {[%clk 0:00:29.8]}
62. Kh1 {[%clk 0:00:21.1]} 62... Kh3 {[%clk 0:00:26.7]} 63. Rh6+ {[%clk
0:00:20.2]} 63... Kg3 {[%clk 0:00:25.2]} 64. Rxh2 {[%clk 0:00:20.2]} 64... Ne4
{[%clk 0:00:24.3]} 65. Rg2+ {[%clk 0:00:19.9]} 65... Kf3 {[%clk 0:00:23.9]} 66.
b4 {[%clk 0:00:18.3]} 66... Nxc3 {[%clk 0:00:20.4]} 67. Rc2 {[%clk 0:00:18.3]}
67... Nb5 {[%clk 0:00:19.6]} 68. Rxc4 {[%clk 0:00:18.4]} 68... f5 {[%clk
0:00:20.2]} 69. Rc5 {[%clk 0:00:18.3]} 69... Nd4 {[%clk 0:00:20]} 70. Rd5 {[%clk
0:00:17.7]} 70... Nc2 {[%clk 0:00:18.4]} 71. b5 {[%clk 0:00:17.6]} 71... f4
{[%clk 0:00:17.3]} 72. b6 {[%clk 0:00:17.5]} 72... Ke4 {[%clk 0:00:17.8]} 73.
Rd8 {[%clk 0:00:16.7]} 73... f3 {[%clk 0:00:16.6]} 74. Rf8 {[%clk 0:00:15.8]}
74... Nd4 {[%clk 0:00:15.4]} 75. b7 {[%clk 0:00:15.6]} 75... Nc6 {[%clk
0:00:15.9]} 76. b8=Q {[%clk 0:00:14.4]} 76... Nxb8 {[%clk 0:00:16.5]} 77. Rxb8
{[%clk 0:00:14.5]} 77... Ke3 {[%clk 0:00:17.1]} 78. Rf8 {[%clk 0:00:14.4]} 78...
Kf2 {[%clk 0:00:17]} 79. Kh2 {[%clk 0:00:13.9]} 79... Ke2 {[%clk 0:00:15.3]} 80.
Kg3 {[%clk 0:00:14]} 80... Kf1 {[%clk 0:00:15]} 81. Rxf3+ {[%clk 0:00:13.9]}
81... Kg1 {[%clk 0:00:15.7]} 82. Ra3 {[%clk 0:00:13.7]} 82... Kf1 {[%clk
0:00:15.7]} 83. Ra2 {[%clk 0:00:13.9]} 83... Ke1 {[%clk 0:00:15.7]} 84. Kf3
{[%clk 0:00:13.6]} 84... Kd1 {[%clk 0:00:16.3]} 85. Ke3 {[%clk 0:00:14]} 85...
Kc1 {[%clk 0:00:16.7]} 86. Kd3 {[%clk 0:00:14.2]} 86... Kb1 {[%clk 0:00:17.3]}
87. Rf2 {[%clk 0:00:14.2]} 87... Kc1 {[%clk 0:00:18]} 88. Kc3 {[%clk 0:00:14.5]}
88... Kd1 {[%clk 0:00:17.7]} 89. Rg2 {[%clk 0:00:14.8]} 89... Ke1 {[%clk
0:00:18]} 90. Rh2 {[%clk 0:00:15]} 90... Kf1 {[%clk 0:00:18.4]} 91. Kd3 {[%clk
0:00:15.4]} 91... Kg1 {[%clk 0:00:18.9]} 92. Ra2 {[%clk 0:00:16]} 92... Kf1
{[%clk 0:00:18.9]} 93. Rb2 {[%clk 0:00:16.4]} 93... Ke1 {[%clk 0:00:18.9]} 94.
Rc2 {[%clk 0:00:17.1]} 94... Kf1 {[%clk 0:00:18.8]} 95. Rd2 {[%clk 0:00:17.5]}
95... Ke1 {[%clk 0:00:19.1]} 96. Ke3 {[%clk 0:00:18.1]} 96... Kf1 {[%clk
0:00:18.8]} 97. Kf3 {[%clk 0:00:18.1]} 97... Ke1 {[%clk 0:00:19]} 98. Rd3 {[%clk
0:00:17.7]} 1-0

[Event "Late-Titled-Tuesday-Blitz-October-24-2023"]
[Site "Chess.com"]
[Date "2023.10.24"]
[Round "6"]
[White "Hasangatin_Ramil"]
[Black "Lady_Nika"]
[Result "1-0"]
[WhiteElo "2709"]
[BlackElo "2530"]
[TimeControl "180+1"]
[EndTime "15:00:59 PDT"]
[Termination "Hasangatin_Ramil won by resignation"]

1. e4 {[%clk 0:03:00.9]} 1... c5 {[%clk 0:02:59.7]} 2. Nf3 {[%clk 0:02:57.1]}
2... e6 {[%clk 0:02:59.7]} 3. g3 {[%clk 0:02:56.8]} 3... Nc6 {[%clk 0:02:59.5]}
4. Bg2 {[%clk 0:02:56.5]} 4... Nf6 {[%clk 0:02:59.3]} 5. d3 {[%clk 0:02:54]}
5... d5 {[%clk 0:02:59.5]} 6. Qe2 {[%clk 0:02:53.6]} 6... dxe4 {[%clk
0:02:59.1]} 7. dxe4 {[%clk 0:02:53.4]} 7... Be7 {[%clk 0:02:58.2]} 8. e5 {[%clk
0:02:53.4]} 8... Nd5 {[%clk 0:02:58.1]} 9. O-O {[%clk 0:02:53.3]} 9... O-O
{[%clk 0:02:57.9]} 10. c4 {[%clk 0:02:53.7]} 10... Nc7 {[%clk 0:02:53.9]} 11.
Nc3 {[%clk 0:02:51.7]} 11... Nd4 {[%clk 0:02:50.9]} 12. Nxd4 {[%clk 0:02:51.3]}
12... cxd4 {[%clk 0:02:50.9]} 13. Rd1 {[%clk 0:02:50.4]} 13... Bc5 {[%clk
0:02:37.8]} 14. Ne4 {[%clk 0:02:49]} 14... Qe7 {[%clk 0:02:35.2]} 15. Qg4 {[%clk
0:02:47.3]} 15... Rd8 {[%clk 0:02:12.2]} 16. Bg5 {[%clk 0:02:45.6]} 1-0